bitfinex/quotes_BTCUSD_20251217
["timestamp","ask_amount","ask_price","bid_price","bid_amount"]
[1766002346359,0.00037592,85810.0,85803.0,0.00025772]
[1766002346776,0.00037592,85810.0,85803.0,0.00225772]
[1766002346966,0.00037592,85810.0,85803.0,0.00025772]
[1766002347387,0.00037592,85810.0,85803.0,0.00225772]
[1766002347604,0.00037592,85810.0,85804.0,0.03004549]
[1766002347814,0.00037592,85810.0,85803.0,0.00225772]
[1766002348735,0.00037592,85810.0,85803.0,0.00025772]
[1766002349025,0.00037592,85810.0,85803.0,0.00225772]
[1766002349320,0.00037592,85810.0,85800.0,0.00456772]
[1766002349526,0.0907,85809.0,85803.0,0.002]
[1766002350030,0.0907,85809.0,85792.0,0.01852]
[1766002350176,0.0907,85809.0,85803.0,0.002]
[1766002350380,0.0907,85809.0,85793.0,0.06495664]
[1766002350594,0.00037592,85810.0,85793.0,0.06495664]
[1766002350998,0.04823072,85829.0,85793.0,0.06495664]
[1766002350999,0.51811654,85856.0,85831.0,0.6310408]
[1766002351251,0.00161287,85850.0,85834.0,0.01165039]
[1766002351456,0.00161287,85850.0,85843.0,0.24463106]
[1766002351580,0.00161287,85850.0,85843.0,0.01164917]
[1766002351786,0.00011276,85856.0,85840.0,0.61939]
[1766002351787,0.00011276,85856.0,85853.0,0.01164781]
[1766002351991,0.00011276,85856.0,85841.0,0.01852]
[1766002351992,0.48678,85855.0,85831.0,0.0116508]
[1766002352189,0.48678,85840.0,85821.0,0.01165215]
[1766002352407,0.48839287,85840.0,85822.0,0.01852]
[1766002352609,0.48839287,85840.0,85812.0,0.74622645]
[1766002352610,0.48678,85831.0,85814.0,0.02326758]
[1766002352826,0.48839287,85831.0,85813.0,0.02326758]
[1766002353231,0.48839287,85831.0,85807.0,0.01852]
[1766002353432,0.48839287,85831.0,85792.0,0.04199737]
[1766002353433,0.63716205,85817.0,85798.0,0.01165528]
[1766002353634,0.01852,85816.0,85800.0,0.01165501]
[1766002353957,0.02013287,85816.0,85795.0,0.24476841]
[1766002354121,0.02013287,85816.0,85797.0,0.01165541]
[1766002354330,0.02013287,85816.0,85800.0,0.01165501]
[1766002354533,0.02022916,85816.0,85799.0,0.01165514]
[1766002354728,0.02022916,85816.0,85801.0,0.01165487]
[1766002354912,0.02022916,85816.0,85800.0,0.05373166]
[1766002355312,0.48678,85815.0,85800.0,0.05373166]
[1766002355544,0.48678,85815.0,85796.0,0.02447723]
[1766002355751,0.48678,85815.0,85796.0,0.03613278]
[1766002355963,0.48678,85815.0,85796.0,0.02447723]
[1766002356545,0.48678,85815.0,85796.0,0.03613278]
[1766002356896,0.48678,85815.0,85796.0,0.02447723]
[1766002357100,0.48678,85815.0,85797.0,0.05256783]
[1766002358382,0.02022916,85816.0,85798.0,0.02326758]
[1766002358561,9.629e-05,85816.0,85803.0,0.0116546]
[1766002358781,9.629e-05,85816.0,85807.0,0.01165406]
[1766002358982,9.629e-05,85816.0,85808.0,0.01165392]
[1766002359289,9.629e-05,85816.0,85809.0,0.01398454]
[1766002359464,9.629e-05,85816.0,85808.0,0.04572106]
[1766002361017,9.629e-05,85816.0,85807.0,0.01165406]
[1766002361325,9.629e-05,85816.0,85808.0,0.01165392]
[1766002361529,9.629e-05,85816.0,85809.0,0.01165378]
[1766002361724,9.629e-05,85816.0,85810.0,0.01165365]
[1766002361886,0.0907,85828.0,85817.0,0.0116527]
[1766002362086,0.01852,85838.0,85825.0,0.01165161]
[1766002362315,0.01861643,85838.0,85826.0,0.01398177]
[1766002362508,0.01861643,85838.0,85820.0,0.65412229]
[1766002362676,0.01861643,85838.0,85821.0,0.08430411]
[1766002362873,0.01861643,85838.0,85827.0,0.01165134]
[1766002363210,0.00209643,85838.0,85829.0,0.64247]
[1766002363573,9.643e-05,85838.0,85829.0,0.64247]
[1766002363783,9.643e-05,85838.0,85825.0,0.02326758]
[1766002363979,9.643e-05,85838.0,85827.0,0.52497134]
[1766002364223,9.643e-05,85838.0,85828.0,0.0116512]
[1766002364421,9.643e-05,85838.0,85831.0,0.0116508]
[1766002364580,9.643e-05,85838.0,85833.0,0.01165053]
[1766002364782,9.643e-05,85838.0,85831.0,0.24466561]
[1766002365025,0.0907,85845.0,85836.0,0.01165012]
[1766002365199,0.10922,85848.0,85827.0,0.23302559]
[1766002365400,0.10922,85848.0,85830.0,0.01165093]
[1766002365601,0.10922,85848.0,85830.0,0.23301839]
[1766002365783,0.62299,85848.0,85830.0,0.01165093]
[1766002365996,0.62299,85848.0,85831.0,0.24466601]
[1766002366182,0.10922,85848.0,85833.0,0.01165053]
[1766002366387,0.10922,85848.0,85833.0,0.24465978]
[1766002366586,0.10922,85848.0,85833.0,0.24466109]
[1766002366849,0.10922,85848.0,85829.0,0.87549035]
[1766002367029,0.62299,85848.0,85830.0,0.01165093]
[1766002367230,0.62399,85848.0,85829.0,0.64247]
[1766002367568,0.44750326,85848.0,85833.0,0.01165053]
[1766002367850,0.44750326,85848.0,85832.0,0.01165066]
[1766002367996,0.44750326,85848.0,85831.0,0.24466155]
[1766002368196,0.44750326,85848.0,85832.0,0.01165066]
[1766002368434,0.02013287,85850.0,85832.0,0.01165066]
[1766002369356,0.001,85848.0,85831.0,0.24466654]
[1766002369553,0.02013287,85850.0,85831.0,0.24466654]
[1766002369720,0.0907,85849.0,85831.0,0.24466654]
[1766002369923,0.0907,85849.0,85830.0,0.24466944]
[1766002370152,0.0907,85849.0,85827.0,1.15588643]
[1766002370153,0.4475,85848.0,85827.0,1.15588643]
[1766002370317,0.4475,85848.0,85828.0,0.0116512]
[1766002370515,0.4475,85848.0,85828.0,0.24467448]
[1766002370734,0.4475,85848.0,85827.0,0.01174777]
[1766002370926,0.4475,85848.0,85828.0,0.09397011]
[1766002371332,0.4475,85848.0,85824.0,0.53184]
[1766002371333,0.4475,85849.0,85819.0,0.01165243]
[1766002371555,0.4475,85849.0,85825.0,0.00474758]
[1766002371556,0.0907,85847.0,85825.0,0.00474758]
[1766002371765,0.0907,85845.0,85814.0,0.02326758]
[1766002372077,0.0907,85845.0,85815.0,0.01852]
[1766002372311,1.06175067,85840.0,85815.0,0.01852]
[1766002372496,0.4475,85838.0,85815.0,0.01852]
[1766002372673,0.0907,85837.0,85815.0,0.01852]
[1766002372877,0.0907,85835.0,85815.0,0.01852]
[1766002373078,0.5382,85835.0,85815.0,0.01852]
[1766002373280,0.0907,85834.0,85815.0,0.01852]
[1766002373482,0.0907,85834.0,85816.0,0.09828889]
[1766002373483,0.5382,85834.0,85816.0,0.09828889]
[1766002374013,0.5382,85834.0,85815.0,0.01852]
[1766002374166,0.5382,85834.0,85815.0,0.02052]
[1766002374578,0.5382,85834.0,85815.0,0.01852]
[1766002374806,0.5392,85834.0,85815.0,0.03017297]
[1766002375006,0.5392,85834.0,85815.0,0.01852]
[1766002375317,0.5392,85834.0,85816.0,0.03214717]
[1766002375812,0.5392,85834.0,85817.0,0.0116527]
[1766002376146,0.5382,85834.0,85816.0,0.03214717]
[1766002376333,0.5382,85834.0,85792.0,0.01165609]
[1766002376334,0.50606,85829.0,85792.0,0.01165609]
[1766002376533,0.0907,85826.0,85793.0,0.26329499]
[1766002376680,0.0907,85824.0,85793.0,0.01852]
[1766002376885,0.01852,85828.0,85793.0,0.01852]
[1766002377106,0.0907,85826.0,85793.0,0.01852]
[1766002377284,0.0907,85826.0,85793.0,0.03017596]
[1766002377481,0.0907,85826.0,85794.0,0.01852]
[1766002377689,0.0907,85826.0,85794.0,0.26329205]
[1766002377886,0.002,85826.0,85795.0,0.01165569]
[1766002378179,0.002,85826.0,85809.0,0.64247]
[1766002378379,0.002,85826.0,85810.0,0.01852]
[1766002378660,0.002,85826.0,85811.0,0.24472338]
[1766002378859,0.002,85826.0,85811.0,0.01165351]
[1766002379178,0.50606,85832.0,85810.0,0.01852]
[1766002379482,0.001,85826.0,85811.0,0.01417334]
[1766002379662,0.001,85826.0,85811.0,0.02582685]
[1766002379863,0.50606,85832.0,85811.0,0.01417334]
[1766002380041,0.50606,85832.0,85814.0,0.01165311]
[1766002380240,0.50606,85832.0,85812.0,0.24472094]
[1766002380447,0.50606,85832.0,85811.0,0.01417334]
[1766002380671,0.04798858,85838.0,85812.0,0.05196838]
[1766002381391,0.04798858,85838.0,85807.0,0.02326758]
[1766002381980,1.06175067,85830.0,85802.0,0.23309479]
[1766002382215,1.0,85837.0,85800.0,0.24475392]
[1766002382413,0.04798858,85838.0,85799.0,0.01165514]
[1766002382414,1.06175067,85830.0,85799.0,0.01165514]
[1766002382720,0.32596,85826.0,85800.0,0.01165501]
[1766002382881,0.32596,85826.0,85801.0,0.05313493]
[1766002383873,0.0907,85827.0,85797.0,0.01852]
[1766002384069,0.32596,85825.0,85797.0,0.01852]
[1766002384307,0.0907,85824.0,85801.0,0.24475095]
[1766002384510,0.32596,85821.0,85802.0,0.01165473]
[1766002384689,0.0907,85820.0,85803.0,0.02749265]
[1766002384888,0.0907,85820.0,85804.0,0.01165446]
[1766002385072,0.0907,85820.0,85803.0,0.03914725]
[1766002385296,0.0907,85820.0,85803.0,0.02749265]
[1766002385487,0.0907,85820.0,85804.0,1.15579]
[1766002385691,0.08627151,85821.0,85804.0,0.00011249]
[1766002385910,0.0907,85823.0,85804.0,0.00011249]
[1766002386117,0.0907,85819.0,85804.0,0.00011249]
[1766002386317,0.32596,85818.0,85804.0,0.00011249]
[1766002389898,0.32596,85818.0,85805.0,0.23308452]
[1766002390098,0.08829206,85821.0,85806.0,0.01165419]
[1766002390299,0.08829206,85821.0,85805.0,0.24474093]
[1766002390461,0.41666,85823.0,85806.0,0.01165419]
[1766002390662,0.19993664,85822.0,85804.0,0.01176695]
[1766002391808,0.19993664,85822.0,85806.0,0.01165419]
[1766002392017,0.19993664,85822.0,85805.0,0.01165433]
[1766002393205,0.19993664,85822.0,85797.0,0.23310661]
[1766002393206,0.20093664,85822.0,85760.0,0.14821768]
[1766002393415,0.001,85822.0,85796.0,0.23310872]
[1766002393615,0.001,85822.0,85805.0,0.02326758]
[1766002394017,0.001,85822.0,85799.0,0.72019981]
[1766002394221,0.001,85822.0,85799.0,0.04963981]
[1766002394637,0.04828598,85825.0,85799.0,0.04963981]
[1766002394867,0.001,85822.0,85799.0,0.04963981]
[1766002395270,0.04828598,85825.0,85799.0,0.04963981]
[1766002395475,0.001,85822.0,85796.0,0.01165555]
[1766002395697,0.0907,85823.0,85794.0,0.23311453]
[1766002395909,0.0907,85823.0,85796.0,0.01165555]
[1766002396333,0.0907,85823.0,85797.0,0.01852]
[1766002396592,0.02644468,85822.0,85797.0,0.01852]
[1766002396791,0.001,85822.0,85797.0,0.01852]
[1766002397054,0.001,85822.0,85797.0,0.03017541]
[1766002397221,0.001,85822.0,85798.0,0.67056]
[1766002397407,0.0907,85819.0,85798.0,0.91532009]
[1766002397613,0.0907,85819.0,85799.0,0.01165514]
[1766002398019,0.0907,85819.0,85800.0,0.01165501]
[1766002398215,0.0907,85819.0,85804.0,0.03492204]
[1766002398488,0.04828598,85825.0,85797.0,0.01852]
[1766002398489,0.01852,85825.0,85806.0,1.15101]
[1766002398913,0.01852,85825.0,85808.0,1.16266392]
[1766002399129,0.01852,85825.0,85811.0,1.15101]
[1766002399363,0.01852,85825.0,85806.0,0.23308376]
[1766002399364,0.01852,85825.0,85806.0,0.01165419]
[1766002399575,0.01852,85825.0,85808.0,0.01165392]
[1766002399967,0.02879787,85830.0,85807.0,1.18118406]
[1766002400190,0.02879787,85830.0,85810.0,0.01165365]
[1766002400484,0.01852,85833.0,85811.0,0.24472159]
[1766002400734,0.01852,85833.0,85809.0,0.48045]
[1766002400908,0.01852,85833.0,85810.0,0.24472437]
[1766002401127,0.01852,85833.0,85809.0,0.72517905]
[1766002401309,0.01852,85833.0,85810.0,0.24472573]
[1766002401691,0.01952,85833.0,85811.0,0.01165351]
[1766002401915,0.01852,85833.0,85813.0,0.01165324]
[1766002402084,0.01852,85833.0,85810.0,0.49210365]
[1766002402280,0.01952,85833.0,85810.0,0.49210365]
[1766002402632,0.01852,85833.0,85812.0,0.23306654]
[1766002402833,0.01852,85833.0,85810.0,0.49210365]
[1766002402834,0.01852,85833.0,85811.0,0.24472285]
[1766002403033,0.01952,85833.0,85810.0,0.49210365]
[1766002403555,0.01952,85833.0,85810.0,0.48045]
[1766002403692,0.01952,85833.0,85811.0,0.01165351]
[1766002404088,0.001,85833.0,85821.0,1.15101]
[1766002404256,0.04716336,85839.0,85818.0,0.02326758]
[1766002404505,0.001,85833.0,85818.0,0.02326758]
[1766002404677,0.04716336,85839.0,85818.0,0.03492014]
[1766002404927,0.09466244,85839.0,85818.0,0.26797094]
[1766002405097,0.001,85833.0,85818.0,0.26797094]
[1766002405297,0.09466244,85839.0,85815.0,0.01165297]
[1766002405476,0.09466244,85839.0,85818.0,0.03285801]
[1766002405679,0.07614244,85839.0,85818.0,0.03285801]
[1766002405901,0.02864336,85839.0,85818.0,0.03285801]
[1766002406098,0.63700648,85840.0,85818.0,0.02120545]
[1766002406480,0.0907,85839.0,85818.0,0.03285801]
[1766002406683,0.0907,85839.0,85818.0,0.02120545]
[1766002406903,0.0907,85839.0,85819.0,0.03008688]
[1766002407871,0.0917,85839.0,85819.0,0.03008688]
[1766002408341,0.0907,85839.0,85819.0,0.03008688]
[1766002408544,0.0917,85839.0,85819.0,0.03008688]
[1766002408896,0.0907,85839.0,85819.0,0.03008688]
[1766002409091,0.0917,85839.0,85819.0,0.03008688]
[1766002409297,0.0907,85829.0,85807.0,0.03017406]
[1766002409494,0.0907,85829.0,85808.0,0.01165392]
[1766002409739,0.0907,85829.0,85811.0,0.24472386]
[1766002409938,0.0907,85829.0,85810.0,0.01852]
[1766002410204,0.0907,85829.0,85807.0,0.23307915]
[1766002410404,0.0907,85829.0,85809.0,0.01165378]
[1766002410604,0.0907,85829.0,85808.0,0.24473177]
[1766002410792,0.0907,85829.0,85799.0,0.48045]
[1766002410998,0.0907,85819.0,85790.0,0.67056]
[1766002411211,0.0907,85819.0,85794.0,0.01165582]
[1766002411876,0.0907,85819.0,85793.0,0.01165596]
[1766002412483,0.0907,85819.0,85792.0,0.03017609]
[1766002413039,0.0907,85819.0,85793.0,0.01165596]
[1766002413277,0.0907,85819.0,85792.0,0.03017609]
[1766002413496,0.0907,85819.0,85795.0,0.01165569]
[1766002413696,0.83320131,85820.0,85795.0,0.01165569]
[1766002413825,0.83320131,85820.0,85793.0,0.00037592]
[1766002414024,0.83320131,85820.0,85793.0,0.24515081]
[1766002414252,0.83320131,85820.0,85794.0,0.01165582]
[1766002414452,0.83320131,85820.0,85795.0,0.01165569]
[1766002414653,0.83320131,85820.0,85797.0,0.01165541]
[1766002414870,0.09198489,85819.0,85795.0,0.23311355]
[1766002415270,0.09198489,85819.0,85797.0,0.01165541]
[1766002415480,0.61352,85838.0,85819.0,0.48045]
[1766002415683,0.61352,85849.0,85825.0,0.01165161]
[1766002415929,0.61352,85849.0,85829.0,0.01165107]
[1766002416128,0.00161287,85850.0,85820.0,0.01852]
[1766002416129,0.00161287,85850.0,85842.0,0.0116493]
[1766002416329,0.61352,85857.0,85845.0,0.0116489]
[1766002416487,0.61352,85857.0,85849.0,0.01164835]
[1766002416671,0.61363283,85857.0,85851.0,0.24460973]
[1766002416870,0.00011283,85857.0,85851.0,0.01164808]
[1766002417082,0.00011283,85857.0,85850.0,0.01164822]
[1766002417273,0.00011283,85857.0,85850.0,0.05125319]
[1766002417899,0.00011283,85857.0,85851.0,0.01164808]
[1766002418347,0.00011283,85857.0,85851.0,0.24460974]
[1766002418528,0.00011283,85857.0,85844.0,0.49897]
[1766002418744,0.10479442,85879.0,85854.0,0.48045]
[1766002418745,0.61352,85879.0,85854.0,0.48045]
[1766002418895,0.0004,85896.0,85859.0,0.492097]
[1766002418896,0.61352,85885.0,85859.0,0.492097]
[1766002419100,0.61352,85885.0,85869.0,0.01164564]
[1766002419346,0.0907,85884.0,85864.0,0.48045]
[1766002419556,0.61352,85878.0,85860.0,0.78602078]
[1766002419759,0.61352,85878.0,85863.0,0.01164646]
[1766002419971,0.0907,85877.0,85867.0,1.15101]
[1766002420295,0.0907,85877.0,85868.0,0.04266583]
[1766002420572,0.00406616,85872.0,85862.0,0.03016659]
[1766002420776,0.00406616,85872.0,85865.0,0.02326758]
[1766002421454,0.00406616,85872.0,85859.0,0.01852]
[1766002421637,0.72398131,85890.0,85859.0,0.00161287]
[1766002421974,0.72409416,85890.0,85859.0,0.00161287]
[1766002422176,0.72409416,85890.0,85865.0,0.002]
[1766002422359,0.00011285,85890.0,85865.0,0.002]
[1766002422678,0.00011285,85890.0,85865.0,0.01364618]
[1766002422974,0.00011285,85890.0,85865.0,0.002]
[1766002423200,0.00011285,85890.0,85860.0,0.24458322]
[1766002423460,0.00011285,85890.0,85860.0,0.00161287]
[1766002423896,0.0907,85888.0,85860.0,0.00161287]
[1766002424093,0.0907,85886.0,85860.0,0.00161287]
[1766002424308,0.72409416,85890.0,85860.0,0.00161287]
[1766002424309,0.73021,85889.0,85860.0,2.87e-06]
[1766002424532,0.77734576,85889.0,85861.0,0.02562481]
[1766002424759,0.77734576,85889.0,85860.0,2.87e-06]
[1766002424944,0.0907,85878.0,85860.0,2.87e-06]
[1766002425155,0.63792,85874.0,85850.0,0.01164822]
[1766002425367,0.63792,85874.0,85849.0,0.49529835]
[1766002425368,0.00161,85874.0,85849.0,0.49529835]
[1766002425591,0.00161,85874.0,85848.0,0.01164849]
[1766002425797,0.63792,85869.0,85849.0,0.0733877]
[1766002425972,0.63953,85869.0,85849.0,0.08503605]
[1766002426186,0.00161,85869.0,85853.0,0.49529781]
[1766002426384,0.63953,85869.0,85853.0,0.48365]
[1766002426585,0.63953,85869.0,85849.0,0.0733877]
[1766002426944,0.63953,85869.0,85851.0,0.02326758]
[1766002427165,0.63953,85869.0,85843.0,0.01164917]
[1766002427716,0.63953,85869.0,85845.0,0.0116489]
[1766002428084,0.00161,85869.0,85831.0,0.0116508]
[1766002428235,0.00161,85869.0,85835.0,0.02326758]
[1766002428236,0.0907,85864.0,85835.0,0.02326758]
[1766002428589,0.01852,85863.0,85835.0,0.02326758]
[1766002428742,0.63792,85860.0,85835.0,0.02326758]
[1766002429353,0.63792,85860.0,85835.0,0.02338041]
[1766002429529,0.0907,85857.0,85835.0,2.83e-06]
[1766002429731,0.63781,85858.0,85835.0,2.83e-06]
[1766002430033,0.165414,85859.0,85835.0,2.83e-06]
[1766002430034,0.0907,85859.0,85835.0,2.83e-06]
[1766002430254,0.0907,85858.0,85835.0,2.83e-06]
[1766002430456,0.0907,85854.0,85835.0,2.83e-06]
[1766002430617,0.0907,85859.0,85835.0,2.83e-06]
[1766002430821,0.63781,85858.0,85835.0,2.83e-06]
[1766002431083,0.0907,85857.0,85835.0,2.83e-06]
[1766002431283,0.002,85859.0,85835.0,2.83e-06]
[1766002431634,0.0907,85857.0,85835.0,2.83e-06]
[1766002432219,0.0907,85855.0,85835.0,2.83e-06]
[1766002432420,0.63781,85854.0,85835.0,2.83e-06]
[1766002432641,0.63781,85852.0,85835.0,2.83e-06]
[1766002432964,0.0907,85849.0,85835.0,2.83e-06]
[1766002433088,0.01852,85851.0,85835.0,2.83e-06]
[1766002433292,0.63781,85850.0,85835.0,2.83e-06]
[1766002433494,0.01852,85851.0,85835.0,2.83e-06]
[1766002433746,0.72851,85849.0,85835.0,2.83e-06]
[1766002437443,0.72851,85849.0,85827.0,0.24467311]
[1766002437444,0.6378,85848.0,85827.0,0.01165134]
[1766002437653,0.63791277,85848.0,85825.0,0.01165161]
[1766002437848,0.63791277,85848.0,85826.0,0.03491906]
[1766002438182,0.63791277,85848.0,85827.0,0.11546078]
[1766002438560,0.63791277,85848.0,85822.0,0.0349196]
[1766002438760,0.63791277,85848.0,85822.0,0.26796002]
[1766002439137,0.63791277,85848.0,85823.0,0.01165188]
[1766002439672,0.63791277,85848.0,85824.0,0.01165175]
[1766002439867,0.63791277,85848.0,85825.0,0.24468386]
[1766002440073,0.63891277,85848.0,85826.0,0.05359483]
[1766002440279,0.63791277,85848.0,85826.0,0.05359483]
[1766002440723,0.63891277,85848.0,85826.0,0.05359483]
[1766002440920,0.63791277,85848.0,85827.0,0.01165134]
[1766002441119,0.63791277,85848.0,85828.0,0.0116512]
[1766002441325,0.00111277,85848.0,85837.0,0.01164998]
[1766002441532,0.00111277,85848.0,85845.0,0.0116489]
[1766002441533,2.77e-06,85848.0,85845.0,0.0116489]
[1766002441787,2.77e-06,85848.0,85847.0,1.12776]
[1766002442016,0.01852,85861.0,85847.0,0.11546078]
[1766002442231,0.01852,85861.0,85850.0,0.24461045]
[1766002442465,0.01852,85861.0,85833.0,0.01165053]
[1766002442466,0.001,85856.0,85833.0,0.01165053]
[1766002442703,0.68843,85852.0,85840.0,0.02326758]
[1766002442921,0.68843,85852.0,85841.0,0.23298673]
[1766002443148,0.68843,85852.0,85842.0,0.11546078]
[1766002443581,0.001,85848.0,85842.0,0.11546078]
[1766002444011,0.68843,85852.0,85842.0,0.11546078]
[1766002444747,0.68843,85849.0,85828.0,0.48365]
[1766002444948,0.68843,85849.0,85826.0,0.64411]
[1766002444949,0.10922,85849.0,85833.0,2.77e-06]
[1766002445336,0.001,85846.0,85833.0,2.77e-06]
[1766002445562,0.0907,85842.0,85833.0,2.77e-06]
[1766002446424,0.68843,85857.0,85838.0,0.72829557]
[1766002446603,0.01852,85856.0,85842.0,0.48365]
[1766002447465,0.01852,85856.0,85842.0,0.4952993]
[1766002447673,0.01852,85856.0,85842.0,0.48365]
[1766002448088,0.01852,85856.0,85844.0,0.01164903]
[1766002448293,0.68843,85857.0,85855.0,0.00077933]
[1766002448664,0.0907,85856.0,85846.0,0.01164876]
[1766002448824,0.0907,85856.0,85842.0,0.4952993]
[1766002449180,0.87083,85856.0,85855.0,0.00077933]
[1766002449397,0.0907,85856.0,85855.0,0.00077933]
[1766002450046,0.81575,85856.0,85855.0,0.00077933]
[1766002450478,0.81575,85856.0,85855.0,0.002]
[1766002450683,0.73912,85854.0,85843.0,0.0512576]
[1766002450886,0.074,85849.0,85830.0,0.01852]
[1766002451110,0.70315,85848.0,85831.0,0.0116508]
[1766002451313,0.70315,85848.0,85830.0,0.25153762]
[1766002451314,0.70315,85848.0,85830.0,0.26318855]
[1766002451514,0.70315,85848.0,85831.0,0.0116508]
[1766002451801,0.70315,85848.0,85833.0,0.0116533]
[1766002452008,0.07374,85855.0,85840.0,0.01164958]
[1766002452009,0.0907,85855.0,85840.0,0.01164958]
[1766002452217,0.0907,85855.0,85841.0,0.01164944]
[1766002452429,0.0907,85855.0,85842.0,0.0116493]
[1766002452632,0.0907,85855.0,85844.0,0.01164903]
[1766002452842,0.0907,85855.0,85843.0,0.10248959]
[1766002453266,0.01852,85857.0,85855.0,0.001]
[1766002453478,0.01852,85857.0,85845.0,0.23297675]
[1766002453697,0.01852,85857.0,85844.0,0.01164903]
[1766002454107,0.01852,85857.0,85845.0,0.0116489]
[1766002454462,0.01852,85857.0,85845.0,0.24462453]
[1766002454803,0.0907,85862.0,85845.0,0.24462453]
[1766002454804,0.01852,85860.0,85849.0,0.01164835]
[1766002454979,0.01852,85860.0,85849.0,0.51231835]
[1766002455186,0.01852,85860.0,85850.0,0.01164822]
[1766002455383,0.01852,85860.0,85849.0,0.50067]
[1766002455771,0.01852,85860.0,85843.0,0.01164917]
[1766002455772,0.01852,85860.0,85843.0,0.73365143]
[1766002455968,0.01852,85860.0,85844.0,0.01164903]
[1766002456185,0.01852,85860.0,85845.0,0.24462558]
[1766002456612,0.01852,85860.0,85845.0,0.0116489]
[1766002456816,0.01852,85860.0,85846.0,0.51231876]
[1766002457020,0.01852,85860.0,85856.0,0.0116474]
[1766002457226,0.01852,85860.0,85852.0,0.50067]
[1766002457424,0.0907,85867.0,85852.0,0.51231795]
[1766002457626,0.72167,85868.0,85852.0,0.74527681]
[1766002457837,0.001,85860.0,85853.0,0.01164781]
[1766002458262,0.001,85860.0,85854.0,0.01164768]
[1766002458605,0.001,85860.0,85853.0,0.01164781]
[1766002458826,0.001,85860.0,85854.0,0.01164768]
[1766002459227,0.01852,85868.0,85860.0,0.01164686]
[1766002459434,0.02858814,85882.0,85860.0,0.01164686]
[1766002459435,0.03133828,85889.0,85868.0,0.50067]
[1766002459636,0.01978203,85879.0,85870.0,0.01164551]
[1766002459850,2.03e-06,85879.0,85878.0,1.48026138]
[1766002460027,2.03e-06,85879.0,85878.0,1.24737287]
[1766002460249,2.03e-06,85879.0,85873.0,0.244547]
[1766002460441,0.00010284,85879.0,85874.0,0.23289924]
[1766002460640,0.00010284,85879.0,85877.0,0.02326758]
[1766002460845,0.00110284,85879.0,85877.0,0.02326758]
[1766002461024,0.00010284,85879.0,85877.0,0.03724105]
[1766002461425,0.00010284,85879.0,85877.0,0.07823013]
[1766002461835,0.00010284,85879.0,85877.0,0.02326758]
[1766002463076,0.00010284,85879.0,85877.0,0.02526758]
[1766002463277,0.00010284,85879.0,85877.0,0.02326758]
[1766002463686,0.00010284,85879.0,85877.0,0.02526758]
[1766002463984,0.00010284,85879.0,85877.0,0.02326758]
[1766002464373,0.00010284,85879.0,85863.0,0.50067]
[1766002464374,0.70242,85878.0,85863.0,0.50067]
[1766002464691,0.70403287,85878.0,85867.0,0.04178758]
[1766002465897,0.77938287,85878.0,85867.0,0.02326758]
[1766002466100,0.70403287,85878.0,85867.0,0.02326758]
[1766002467990,0.70403287,85878.0,85862.0,0.02326758]
[1766002468206,0.70403287,85878.0,85863.0,0.50067]
[1766002468386,0.00161287,85878.0,85867.0,0.01164591]
[1766002468590,0.00161287,85878.0,85871.0,0.2445503]
[1766002468841,0.00161287,85878.0,85871.0,0.01164537]
[1766002469068,0.00161287,85878.0,85871.0,0.23290504]
[1766002469267,0.00161287,85878.0,85872.0,0.01164523]
[1766002469426,0.00261287,85878.0,85871.0,0.01164537]
[1766002469628,0.00161287,85878.0,85871.0,0.01164537]
[1766002470032,0.00261287,85878.0,85871.0,0.24455284]
[1766002470241,0.00161287,85878.0,85871.0,0.24455209]
[1766002470452,0.00161287,85878.0,85870.0,0.74522537]
[1766002470649,0.00261287,85878.0,85871.0,0.01164537]
[1766002471475,0.00261287,85878.0,85870.0,0.50067]
[1766002471774,0.00261287,85878.0,85865.0,0.50067]
[1766002472155,0.00161287,85878.0,85865.0,0.50067]
[1766002472891,0.00161287,85878.0,85864.0,0.74509]
[1766002473099,0.00261287,85878.0,85864.0,0.74509]
[1766002473855,0.00161287,85878.0,85864.0,0.74509]
[1766002474045,0.53483395,85879.0,85864.0,0.74670287]
[1766002475346,0.001,85878.0,85864.0,0.74670287]
[1766002475548,0.53483395,85879.0,85864.0,0.74670287]
[1766002475984,0.53583395,85879.0,85864.0,0.74670287]
[1766002476202,0.53483395,85879.0,85864.0,0.74670287]
[1766002476646,0.001,85878.0,85864.0,0.74670287]
[1766002476828,0.53483395,85879.0,85864.0,0.74670287]
[1766002477246,0.53583395,85879.0,85864.0,0.74670287]
[1766002477756,0.53583395,85879.0,85864.0,1.25901919]
[1766002478348,0.53583395,85879.0,85865.0,0.01164618]
[1766002478499,0.53483395,85879.0,85865.0,0.01164618]
[1766002478694,0.001,85878.0,85865.0,0.01164618]
[1766002479047,0.53483395,85879.0,85865.0,0.01164618]
[1766002479392,0.53583395,85879.0,85865.0,0.01164618]
[1766002479599,0.07535,85876.0,85864.0,0.00161287]
[1766002479797,0.37254,85875.0,85864.0,0.00171368]
[1766002480230,0.07535,85872.0,85864.0,0.00171368]
[1766002480432,0.44789,85872.0,85864.0,0.00171368]
[1766002480853,0.37254,85872.0,85864.0,0.00171368]
[1766002481204,0.37254,85872.0,85865.0,0.02462983]
[1766002481405,0.37254,85872.0,85864.0,3.68e-06]
[1766002481406,0.07535,85869.0,85864.0,3.68e-06]
[1766002481609,0.4462,85865.0,85864.0,3.68e-06]
[1766002482643,0.0907,85869.0,85841.0,0.01164944]
[1766002482644,0.07535,85864.0,85843.0,0.01164917]
[1766002482844,0.37085,85861.0,85839.0,0.01164971]
[1766002483047,0.07535,85858.0,85840.0,0.01164958]
[1766002483210,0.07535,85858.0,85844.0,0.24462932]
[1766002483211,0.37085,85857.0,85844.0,0.24462932]
[1766002483410,0.37085,85857.0,85844.0,0.01164903]
[1766002483615,0.4462,85857.0,85842.0,0.0116493]
[1766002483921,0.4462,85857.0,85840.0,0.51456]
[1766002484983,0.44781287,85857.0,85840.0,0.51456]
[1766002485696,0.44781287,85857.0,85840.0,0.52620958]
[1766002485994,0.36713,85855.0,85837.0,0.01164998]
[1766002486163,0.36713,85853.0,85839.0,0.02326758]
[1766002486329,0.44248,85853.0,85839.0,0.02326758]
[1766002486529,0.44248,85853.0,85839.0,0.05423771]
[1766002487083,0.44248,85853.0,85839.0,0.02326758]
[1766002487750,0.36713,85853.0,85839.0,0.02326758]
[1766002487960,0.44448,85853.0,85839.0,0.02326758]
[1766002489184,0.44248,85853.0,85839.0,0.02326758]
[1766002490098,0.44448,85853.0,85839.0,0.02326758]
[1766002490505,0.44248,85853.0,85839.0,0.02326758]